bitfinex/quotes_ETHUSD_20241119
["timestamp","ask_amount","ask_price","bid_price","bid_amount"]
[1731976588564,3.15417,3170.4,3169.7,1.1154]
[1731976588717,0.62161488,3170.6,3169.7,1.1154]
[1731976588919,0.06297693,3170.5,3169.7,1.1154]
[1731976589160,0.62161488,3170.6,3169.7,1.1154]
[1731976589465,3.0,3170.9,3170.0,1.2002]
[1731976589626,3.15376,3170.9,3170.0,1.2002]
[1731976589827,3.0,3171.0,3170.0,1.35804852]
[1731976590130,3.0,3170.8,3170.0,1.35804852]
[1731976590330,3.0,3170.8,3170.0,1.2002]
[1731976590533,3.15389,3170.7,3170.0,1.2002]
[1731976591266,3.0,3170.8,3170.0,1.2002]
[1731976591423,8.68940723,3170.8,3170.0,1.2002]
[1731976591771,0.62976376,3170.9,3170.1,1.1663]
[1731976591772,3.62976376,3170.9,3170.1,1.1663]
[1731976591920,6.22834792,3170.9,3170.1,1.1663]
[1731976592118,3.15408,3170.5,3170.1,1.1663]
[1731976592343,0.06297693,3170.4,3170.1,1.1663]
[1731976592550,5.68968723,3170.5,3170.1,1.1663]
[1731976592729,5.53560723,3170.5,3170.0,0.3152]
[1731976593353,3.0,3170.3,3170.0,0.3152]
[1731976593892,3.0,3170.4,3170.0,0.3152]
[1731976594190,3.1543,3170.3,3170.0,0.3152]
[1731976594391,8.68984723,3170.4,3170.0,0.3152]
[1731976594556,3.15428,3170.3,3170.0,0.3152]
[1731976594765,3.15428,3170.3,3169.9,0.3152]
[1731976594960,5.69015723,3170.1,3169.9,0.3152]
[1731976595370,5.69017723,3170.0,3169.9,0.3152]
[1731976595550,5.70473963,3170.0,3169.9,0.3152]
[1731976595749,2.55016963,3170.0,3169.9,0.3152]
[1731976595987,2.61314656,3170.3,3169.9,0.3152]
[1731976596149,2.55016963,3170.2,3169.9,0.3152]
[1731976596354,0.06297693,3170.3,3169.9,0.3152]
[1731976596850,0.06297693,3170.3,3169.6,0.3152]
[1731976597050,3.15448,3170.1,3169.6,0.3152]
[1731976597362,5.70464963,3170.1,3169.6,0.3152]
[1731976597762,0.06297693,3170.0,3169.6,0.3152]
[1731976597979,6.15457,3170.0,3169.6,0.3152]
[1731976598181,3.15478,3169.8,3169.6,0.3152]
[1731976598589,2.55016963,3169.9,3169.6,0.3152]
[1731976599105,3.0,3170.0,3169.6,0.3152]
[1731976599106,8.70480963,3170.0,3169.6,0.3152]
[1731976599282,2.55016963,3169.9,3169.6,0.3152]
[1731976600304,8.76791656,3169.8,3168.9,0.3152]
[1731976600514,5.70531963,3169.5,3168.9,0.3152]
[1731976600670,3.15538,3169.2,3168.9,0.3152]
[1731976600863,0.06297693,3169.1,3168.9,0.3152]
[1731976601220,0.06297693,3169.1,3168.5,0.3152]
[1731976601221,5.55016963,3169.1,3168.5,0.3152]
[1731976601364,2.55016963,3169.0,3168.5,0.3152]
[1731976602303,5.70582963,3169.0,3168.5,0.3152]
[1731976602506,3.15567,3168.9,3168.5,0.3152]
[1731976603370,3.15578,3168.8,3168.5,0.3152]
[1731976603594,5.70594963,3168.8,3168.5,0.3152]
[1731976603818,2.55016963,3168.7,3168.5,0.3152]
[1731976604102,2.55016963,3168.8,3168.5,0.3152]
[1731976604662,2.55016963,3168.7,3168.5,0.3152]
[1731976605308,2.55016963,3168.9,3168.5,0.73703446]
[1731976605525,8.70564963,3169.1,3168.5,0.3152]
[1731976605679,2.55016963,3169.0,3168.5,0.3152]
[1731976605915,5.55016963,3169.1,3168.5,0.3152]
[1731976606313,2.55016963,3169.0,3168.5,0.3152]
[1731976607613,2.55016963,3168.9,3168.5,0.3152]
[1731976607858,2.55016963,3168.8,3168.5,0.3152]
[1731976608146,2.55016963,3169.3,3168.9,0.3152]
[1731976608314,2.55016963,3169.9,3169.5,1.5643]
[1731976608503,2.55016963,3169.9,3169.8,1.5643]
[1731976608705,3.17711878,3170.1,3169.8,1.2491]
[1731976609242,2.55016963,3170.1,3169.8,1.2491]
[1731976609415,2.55016963,3170.0,3169.8,1.2491]
[1731976609620,2.55016963,3170.1,3169.8,1.2491]
[1731976609825,2.55016963,3169.9,3169.8,1.5643]
[1731976610124,2.55178662,3169.9,3169.8,1.5643]
[1731976610656,2.55138255,3170.0,3169.8,1.5643]
[1731976610811,2.55138255,3170.1,3169.8,1.2491]
[1731976611011,2.55138255,3170.0,3169.8,1.5643]
[1731976611412,2.55138255,3170.1,3170.0,0.3152]
[1731976611713,2.55138255,3170.3,3169.8,4.875787]
[1731976611914,2.55138255,3170.4,3170.1,0.3152]
[1731976612427,2.55138255,3170.4,3170.1,3.4696]
[1731976612628,2.55138255,3170.5,3170.4,0.3152]
[1731976612831,3.18394749,3170.6,3170.4,0.3152]
[1731976613633,3.18394749,3170.5,3170.4,0.3152]
[1731976613824,3.18987634,3170.5,3170.4,0.3152]
[1731976614114,3.18987634,3170.6,3170.4,0.3152]
[1731976614341,3.18987634,3170.6,3170.5,4.61137]
[1731976614666,2.5529045,3170.7,3170.5,4.29617]
[1731976614813,2.5529045,3170.7,3170.5,1.1421]
[1731976615246,2.5529045,3170.6,3170.5,1.1421]
[1731976615421,2.5529045,3170.7,3170.2,1.1421]
[1731976615615,2.5529045,3170.5,3170.2,1.1421]
[1731976615919,3.18987634,3170.7,3170.4,0.3152]
[1731976615920,2.5529045,3170.7,3170.4,0.3152]
[1731976616235,2.5529045,3170.8,3170.5,3.15406]
[1731976616444,2.5529045,3170.9,3170.4,0.3152]
[1731976616614,2.5529045,3170.9,3170.6,3.15395]
[1731976617043,2.5529045,3170.9,3170.7,3.15385]
[1731976617265,2.5529045,3171.2,3171.0,3.15357]
[1731976617458,7.61857688,3171.9,3171.1,3.1534]
[1731976617459,2.5529045,3171.4,3171.1,3.1534]
[1731976617860,2.5529045,3171.4,3171.2,3.15328]
[1731976618195,2.5529045,3171.5,3171.1,3.15347]
[1731976618481,2.5529045,3171.6,3171.1,3.15347]
[1731976618779,2.5529045,3171.7,3171.1,3.15347]
[1731976618977,2.5529045,3171.7,3170.9,1.4573]
[1731976619180,3.1533,3171.3,3170.9,1.1421]
[1731976619386,1.2012,3171.1,3170.5,3.15398]
[1731976619671,2.5529045,3171.2,3170.7,3.15387]
[1731976619886,2.5529045,3171.2,3170.8,1.2133]
[1731976620054,2.5529045,3171.4,3171.0,3.1535]
[1731976620250,2.61588143,3171.6,3171.0,3.15354]
[1731976620446,2.5529045,3171.6,3170.8,1.5285]
[1731976620646,3.17566873,3171.9,3171.6,3.15297]
[1731976620931,2.5529045,3172.1,3171.8,3.15271]
[1731976621036,2.5529045,3172.3,3171.7,0.3152]
[1731976621236,3.18987634,3172.5,3171.5,1.5285]
[1731976621237,0.06297693,3172.2,3171.5,1.5285]
[1731976621488,3.15257,3172.1,3171.5,1.5285]
[1731976621651,2.5529045,3172.1,3171.5,4.36637]
[1731976621982,2.5529045,3172.1,3171.6,3.15296]
[1731976622193,2.5529045,3172.1,3171.5,1.2133]
[1731976622479,3.0,3171.7,3170.8,1.2107]
[1731976622785,3.15348,3171.1,3170.4,3.15417]
[1731976623076,5.61588143,3171.0,3170.4,3.15417]
[1731976623278,8.76946143,3171.0,3170.4,3.46937]
[1731976623515,3.15378,3170.8,3170.4,0.3152]
[1731976623781,3.84258143,3170.7,3169.9,4.36529]
[1731976623963,2.5529045,3170.6,3170.3,3.1542]
[1731976624167,2.5529045,3170.7,3170.3,3.1542]
[1731976624369,3.0,3171.0,3170.2,3.15437]
[1731976624370,2.5529045,3170.8,3170.2,3.15437]
[1731976624678,2.5529045,3170.9,3170.8,3.46897]
[1731976624851,2.56026956,3171.0,3170.9,3.46887]
[1731976625175,2.56026956,3171.3,3170.9,0.3152]
[1731976625379,2.56026956,3171.3,3171.2,0.3152]
[1731976625548,2.56026956,3171.5,3171.2,3.4685]
[1731976625750,2.56026956,3171.5,3171.3,1.4789]
[1731976625987,2.56026956,3171.7,3171.4,0.3152]
[1731976626280,2.56026956,3171.5,3171.4,0.3152]
[1731976626774,6.99476915,3171.7,3171.4,0.3152]
[1731976626962,6.99476915,3171.7,3170.9,3.15366]
[1731976626963,6.99476915,3171.7,3171.0,0.3152]
[1731976627161,2.56196517,3171.2,3171.0,0.3152]
[1731976627388,2.56196517,3171.2,3171.0,3.46877]
[1731976627676,2.56196517,3171.3,3171.2,0.3152]
[1731976627847,2.5605313,3171.3,3171.2,0.3152]
[1731976628050,3.20245646,3171.3,3171.2,0.3152]
[1731976628252,3.20245646,3171.4,3171.2,0.3152]
[1731976628487,3.26543339,3171.3,3171.2,0.3152]
[1731976628709,0.06297693,3171.3,3171.2,0.3152]
[1731976628900,3.15328,3171.3,3171.2,0.3152]
[1731976629218,3.15328,3171.3,3169.8,0.01]
[1731976629219,3.15417,3170.5,3170.2,0.3152]
[1731976629376,2.55887132,3170.5,3170.2,0.3152]
[1731976629706,2.55887132,3170.4,3169.9,3.15466]
[1731976630264,1.1403,3170.2,3169.3,0.3152]
[1731976630464,5.71376132,3169.7,3169.3,0.3152]
[1731976630702,2.62184825,3169.6,3169.3,0.3152]
[1731976631016,9.35310563,3169.4,3169.3,0.3152]
[1731976631216,6.15517,3169.4,3168.6,0.3152]
[1731976631392,2.55619972,3169.1,3168.6,3.47116]
[1731976631597,3.0,3169.0,3168.6,0.3152]
[1731976631767,5.61917665,3169.0,3168.6,0.3152]
[1731976631966,8.71176972,3169.0,3168.6,0.3152]
[1731976632320,2.55619972,3168.9,3168.5,0.3152]
[1731976632492,3.15568,3168.9,3168.5,0.3152]
[1731976632693,5.71187972,3168.9,3168.5,0.3152]
[1731976632894,3.15568,3168.9,3168.5,0.3152]
[1731976633095,2.55619972,3168.9,3168.5,0.62464446]
[1731976633278,2.55619972,3169.2,3168.5,0.3152]
[1731976633480,3.15579,3168.8,3168.5,0.3152]
[1731976633887,3.1556,3169.0,3168.5,0.3152]
[1731976634111,2.55619972,3169.0,3168.5,0.3152]
[1731976634323,3.15596,3168.6,3168.5,0.3152]
[1731976634620,2.55619972,3169.0,3168.4,2.7792446]
[1731976634779,3.15562,3169.0,3168.4,2.7792446]
[1731976635120,2.55619972,3169.1,3168.4,3.37280206]
[1731976635316,5.71156972,3169.2,3168.4,3.37280206]
[1731976635526,6.15547,3169.1,3168.4,3.37280206]
[1731976635910,3.0,3169.1,3168.4,6.59208074]
[1731976636094,2.55619972,3169.4,3168.5,1.1959]
[1731976636432,3.0,3169.5,3169.1,3.15546]
[1731976636595,3.0,3169.5,3168.7,1.25900783]
[1731976636793,2.55619972,3169.7,3169.4,1.1959]
[1731976636991,2.55619972,3170.0,3169.5,3.15499]
[1731976637196,0.63484148,3170.1,3169.4,1.1959]
[1731976637400,5.71067972,3170.1,3169.4,4.35098]
[1731976638428,3.15486,3169.8,3169.0,1.2231]
[1731976638630,6.21785693,3169.7,3169.0,1.2231]
[1731976638793,3.15508,3169.5,3168.8,3.32135223]
[1731976638983,3.0,3169.3,3168.7,1.2053]
[1731976639185,3.21834693,3169.2,3168.7,1.2053]
[1731976639518,3.21834693,3169.2,3168.4,5.9353546]
[1731976639519,3.15548,3169.1,3168.4,5.9353946]
[1731976639817,3.78969972,3169.2,3168.6,3.15593]
[1731976640021,3.0,3169.3,3168.8,3.15569]
[1731976640224,3.0,3169.5,3168.5,0.06054235]
[1731976640430,3.0,3169.6,3168.9,3.1556]
[1731976640601,3.0,3169.6,3168.7,3.15586]
[1731976640602,0.06297693,3169.4,3168.7,3.15586]
[1731976640790,0.06297693,3169.4,3168.4,3.49331406]
[1731976640791,6.21816693,3169.4,3168.4,3.49331406]
[1731976641094,6.21816693,3169.4,3168.5,3.62591141]
[1731976641095,8.71138972,3169.4,3168.5,3.62591141]
[1731976641298,3.0,3169.5,3168.6,0.05911095]
[1731976641500,3.0,3169.4,3168.8,3.1557]
[1731976641820,3.0,3169.5,3168.9,4.28397]
[1731976642616,3.0,3169.4,3168.9,1.1284]
[1731976642798,5.55619972,3169.5,3168.9,4.28406]
[1731976642997,3.0,3169.5,3168.9,1.1284]
[1731976643200,2.55619972,3169.8,3168.9,1.1284]
[1731976643402,2.55619972,3170.0,3169.6,4.35789]
[1731976643628,2.55619972,3170.2,3169.6,1.203]
[1731976643782,3.23575073,3170.2,3169.6,4.35795]
[1731976643981,3.23575073,3170.2,3169.8,3.15473]
[1731976643982,3.1727738,3170.2,3169.8,3.15473]
[1731976644199,2.55619972,3170.3,3169.7,3.15479]
[1731976644405,2.55619972,3170.4,3170.1,0.3152]
[1731976644612,3.15421,3170.4,3170.1,0.3152]
[1731976644823,2.55619972,3170.2,3169.6,0.3152]
[1731976645028,3.15487,3169.7,3169.6,0.3152]
[1731976645200,5.70833951,3169.7,3169.6,0.3152]
[1731976645399,3.15487,3169.7,3169.1,0.3152]
[1731976645739,3.0,3169.9,3169.4,0.3152]
[1731976646024,2.55346951,3170.0,3169.4,0.3152]
[1731976646025,3.0,3170.0,3169.4,0.3152]
[1731976646256,2.55346951,3170.1,3169.6,0.3152]
[1731976646456,3.0,3170.2,3169.6,3.47008]
[1731976646733,2.55346951,3170.3,3169.8,0.3152]
[1731976646932,2.55346951,3170.2,3169.8,0.3152]
[1731976647222,3.15461,3170.0,3169.8,0.3152]
[1731976647641,5.70788951,3170.2,3169.6,0.3152]
[1731976647825,3.15477,3169.8,3169.6,0.3152]
[1731976647998,3.15457,3170.0,3169.6,0.3152]
[1731976648543,3.0,3169.9,3169.3,0.3152]
[1731976648704,6.15459,3170.0,3169.5,0.3152]
[1731976648902,5.61644644,3170.0,3169.5,0.3152]
[1731976649101,3.15486,3169.8,3169.5,0.3152]
[1731976649702,3.15486,3169.8,3169.2,3.47054]
[1731976649903,3.15487,3169.7,3169.2,0.3152]
[1731976650101,3.15498,3169.6,3169.2,0.3152]
[1731976650347,2.55346951,3169.7,3169.2,0.3152]
[1731976650656,2.55346951,3169.8,3169.2,0.3152]
[1731976651206,3.155,3169.6,3169.2,0.3152]
[1731976651406,5.70838951,3169.7,3169.2,0.3152]
[1731976651606,3.15492,3169.7,3169.2,0.3152]
[1731976651829,2.55346951,3169.8,3169.2,0.777285]
[1731976652033,2.55346951,3169.9,3169.2,0.3152]
[1731976652307,3.15494,3169.7,3169.2,0.3152]
[1731976652820,2.55346951,3169.8,3169.2,0.3152]
[1731976653033,2.55346951,3169.9,3169.4,0.3152]
[1731976653350,5.70823951,3169.8,3169.4,0.3152]
[1731976653720,2.55346951,3169.8,3169.4,0.3152]
[1731976653922,5.70823951,3169.8,3169.4,0.3152]
[1731976654125,3.15527,3169.3,3169.2,0.3152]
[1731976654317,10.49611569,3169.3,3169.2,0.3152]
[1731976654519,6.98437,3169.3,3169.2,0.3152]
[1731976655106,3.0,3169.2,3168.5,0.3152]
[1731976655420,5.55713184,3169.3,3168.9,0.3152]
[1731976656135,3.0,3169.3,3168.9,0.3152]
[1731976656338,3.21836693,3169.2,3168.9,0.3152]
[1731976656521,3.0,3169.3,3168.9,0.3152]
[1731976656930,5.55713184,3169.3,3168.9,0.3152]
[1731976657235,3.0,3169.3,3168.9,0.3152]
[1731976657433,3.0,3169.3,3168.7,0.3152]
[1731976657638,6.21825693,3169.3,3168.7,0.3152]
[1731976658596,3.0312,3169.3,3168.9,0.3152]
[1731976658762,0.0312,3169.3,3168.9,0.3152]
[1731976658921,3.0,3169.2,3168.9,0.3152]
[1731976659127,0.0312,3169.3,3169.1,0.3152]
[1731976659341,0.0312,3169.3,3169.2,3.47057]
[1731976659516,0.0312,3169.3,3169.2,4.255713]
[1731976660465,0.0312,3169.3,3169.2,1.100343]
[1731976660608,0.0312,3169.3,3169.2,4.255713]
[1731976661125,0.0312,3169.3,3169.2,5.481013]
[1731976661940,2.55713184,3170.4,3170.1,1.5298]
[1731976662140,2.55713184,3170.6,3170.2,0.3152]
[1731976662564,0.06297693,3170.5,3170.2,0.3152]
[1731976662771,6.85780184,3170.3,3170.2,0.3152]
[1731976663079,1.1464,3170.3,3169.3,0.3152]
[1731976663284,5.71194415,3170.0,3169.3,0.3152]
[1731976663446,3.0,3169.9,3169.3,0.3152]
[1731976663649,3.0,3169.9,3169.5,0.3152]
[1731976663859,8.71197415,3170.0,3169.5,0.3152]
[1731976664192,2.55733415,3170.0,3169.7,0.3152]
[1731976664391,2.55733415,3170.4,3170.0,0.3152]
[1731976664574,2.55733415,3170.4,3169.6,0.3152]
[1731976664778,2.55733415,3170.6,3170.2,3.46956]
[1731976665072,2.55733415,3170.6,3170.2,4.70866]
[1731976665439,2.55733415,3170.5,3170.2,4.70866]
[1731976665640,5.71127415,3170.7,3170.2,1.5543]
[1731976665886,5.71127415,3170.7,3169.2,0.01]
[1731976665887,3.15437,3170.2,3169.9,0.3152]
[1731976666127,2.55733415,3170.2,3169.9,0.3152]
[1731976666456,2.58888636,3170.2,3169.9,0.3152]
[1731976666837,2.58888636,3170.2,3170.1,0.3152]
[1731976667142,2.59085788,3170.2,3170.1,0.3152]
[1731976667352,0.03155221,3170.2,3170.1,0.3152]
[1731976667661,2.59085788,3170.2,3170.1,0.3152]
[1731976667856,0.03155221,3170.2,3169.8,0.3152]
[1731976668059,2.56062759,3170.1,3169.8,0.3152]
[1731976668487,2.56062759,3169.9,3169.8,0.3152]
[1731976668644,2.5921798,3170.2,3170.0,3.46977]
[1731976668979,3.19888842,3170.4,3170.2,1.4465]
[1731976669279,3.83866611,3170.5,3170.2,0.3152]
[1731976669481,2.56130754,3170.3,3170.2,3.46957]
[1731976669694,2.56130754,3170.4,3170.2,0.662157]
[1731976669845,2.56130754,3170.5,3170.2,0.662157]
[1731976670265,2.56130754,3170.5,3169.9,3.46978]
[1731976670484,2.56130754,3170.4,3170.2,0.3152]
[1731976670655,2.56130754,3170.4,3170.1,3.15438]
[1731976670656,2.56130754,3170.4,3170.3,4.63377]
[1731976670857,0.03155221,3170.5,3170.4,3.46937]
[1731976671250,0.03155221,3170.5,3170.4,3.932737]
[1731976672245,0.03155221,3170.5,3170.4,3.46937]
[1731976672449,0.03155221,3170.5,3170.4,0.3152]
[1731976673196,0.03155221,3170.5,3170.4,3.46937]
[1731976673343,0.03155221,3170.5,3170.4,0.3152]
[1731976673547,0.03155221,3170.5,3170.0,3.15456]
[1731976673548,0.03155221,3170.5,3170.0,1.4795]
[1731976673786,2.59285975,3170.5,3170.0,4.63404]
[1731976674020,2.56130754,3170.4,3170.0,4.63404]
[1731976674228,2.59285975,3170.5,3170.0,4.63404]
[1731976674424,2.27795975,3170.5,3170.0,1.4795]
[1731976674682,3.20274033,3170.5,3170.2,0.3152]
[1731976674933,3.20274033,3170.6,3170.2,3.46952]
[1731976675125,3.20274033,3170.9,3170.4,0.3152]
[1731976675432,3.20274033,3171.1,3170.8,0.3152]
[1731976675582,3.20274033,3171.0,3170.8,0.3152]
[1731976675989,3.20274033,3170.9,3170.8,0.3152]
[1731976676394,0.03155221,3170.9,3170.8,0.3152]
[1731976676610,6.24819914,3170.9,3170.8,0.3152]
[1731976677232,6.24819914,3170.9,3170.0,0.3152]
[1731976677233,3.15405,3170.6,3170.0,0.3152]
[1731976677619,3.15424,3170.4,3170.0,0.3152]
[1731976678125,0.03155221,3170.6,3170.0,3.46975]
[1731976678426,0.03155221,3170.4,3170.2,0.3152]
[1731976678600,6.1537,3170.9,3170.5,1.4838]
[1731976678601,0.03155221,3170.6,3170.5,1.4838]
[1731976678984,0.03155221,3170.6,3170.5,0.3152]
[1731976679184,3.18552221,3170.6,3170.5,0.3152]
[1731976679584,3.18552221,3170.6,3170.3,0.3152]
[1731976679914,0.03155221,3170.6,3170.3,0.3152]
[1731976680286,0.03155221,3170.6,3170.5,0.3152]
[1731976680625,0.03155221,3170.6,3170.5,3.46927]
[1731976680825,0.03155221,3170.6,3170.5,0.3152]
[1731976681124,0.03155221,3170.6,3170.5,3.46927]
[1731976681935,0.03155221,3170.6,3170.5,0.3152]
[1731976682286,0.03155221,3170.6,3170.5,0.662136]
[1731976682491,0.03155221,3170.6,3170.5,5.015306]
[1731976683025,0.03155221,3170.6,3170.5,1.861236]
[1731976683231,0.03155221,3170.6,3170.5,1.5143]
[1731976683630,0.03155221,3170.6,3170.5,4.67837]
[1731976683841,0.03155221,3170.6,3170.5,4.74143359]
[1731976684537,0.03155221,3170.6,3170.5,4.73143359]
[1731976685530,0.03155221,3170.6,3170.5,4.66837]
[1731976686132,0.03155221,3170.6,3170.5,5.45693874]
[1731976686428,0.03155221,3170.6,3170.5,5.46693874]
[1731976687732,2.56217359,3172.1,3171.4,0.3152]
[1731976687902,2.56217359,3172.2,3171.9,0.3152]
[1731976688101,2.56217359,3172.3,3172.1,0.3152]
[1731976688327,5.71437359,3172.4,3172.1,0.3152]
[1731976688505,2.56217359,3172.4,3172.1,0.3152]
[1731976688757,3.15199,3172.6,3172.1,0.3152]
[1731976688892,5.71416359,3172.6,3172.1,0.3152]
[1731976689092,2.56217359,3172.7,3172.4,0.3152]
[1731976689293,2.56217359,3172.8,3172.4,0.3152]
[1731976689493,2.56217359,3172.9,3172.1,0.37824078]
[1731976689722,3.15169,3172.9,3172.3,3.15228]
[1731976690035,3.15169,3172.9,3172.4,0.3152]
[1731976690197,2.56217359,3173.0,3172.4,0.3152]
[1731976690401,3.1519,3172.7,3172.4,0.3152]
[1731976690900,0.03155221,3172.7,3172.4,3.46733]
[1731976691238,0.03155221,3172.7,3172.6,4.62318]
[1731976691712,0.03155221,3172.7,3172.6,4.68620578]
[1731976692594,0.03155221,3172.7,3172.6,4.62318]
[1731976692995,0.03155221,3172.7,3172.6,4.64318]
[1731976693495,0.03155221,3172.7,3172.6,4.63318]
[1731976693694,3.14993,3174.7,3173.9,0.6295]
[1731976693927,3.26866418,3174.9,3174.0,3.46577]
[1731976694145,3.26866418,3174.9,3173.9,0.69250143]
[1731976694146,0.11896418,3174.9,3174.1,0.37819838]
[1731976694435,3.14964,3175.0,3174.2,3.15038]
[1731976694631,4.70010092,3175.3,3174.0,0.06299506]
[1731976694632,1.55079092,3175.3,3174.0,0.06299506]
[1731976694834,3.14978,3174.9,3174.0,3.21350506]
[1731976694998,3.14956,3175.1,3174.3,3.15027]
[1731976695197,3.14956,3175.1,3174.4,0.06299008]
[1731976695539,0.03155221,3175.1,3174.6,3.15]
[1731976695713,0.03155221,3175.1,3174.9,0.9136]
[1731976696241,0.03155221,3175.1,3174.9,4.06326]
[1731976696447,0.03155221,3175.1,3175.0,3.21257874]
[1731976696741,0.03155221,3175.1,3175.0,0.06297874]
[1731976696939,0.03155221,3175.1,3174.5,0.9188]
[1731976697094,0.03155221,3175.1,3174.5,0.98177077]
[1731976697638,0.03155221,3175.1,3174.5,1.39495885]
[1731976697797,3.18108221,3175.1,3174.5,0.98177077]
[1731976698002,3.18108221,3175.1,3174.5,0.9188]
[1731976698198,3.14963,3175.0,3174.2,0.8617]
[1731976698425,3.14964,3175.0,3174.2,0.92469376]
[1731976698747,0.03155221,3175.1,3174.5,3.15008]
[1731976698912,0.03155221,3175.1,3174.6,0.06298618]
[1731976699450,0.03155221,3175.1,3174.7,3.14988]
[1731976699741,0.03155221,3175.1,3174.6,0.06298618]
[1731976700111,0.03155221,3175.1,3175.0,3.1496]
[1731976700448,0.03155221,3175.1,3175.0,3.84251603]
[1731976700742,0.03155221,3175.1,3175.0,0.69291603]
[1731976700897,0.03155221,3175.1,3174.7,0.8617]
[1731976700898,3.18112221,3175.1,3174.7,0.8617]
[1731976701098,0.03155221,3175.1,3174.7,0.8617]
[1731976702041,0.03155221,3175.1,3174.0,0.8702]
[1731976702042,3.18111221,3175.1,3174.0,0.8702]
[1731976702199,0.03155221,3175.1,3174.1,0.026438]
[1731976702402,3.15069,3174.0,3173.2,0.06299494]
[1731976702636,3.15069,3174.0,3173.3,0.32144549]
[1731976702848,0.03155221,3174.0,3173.4,4.02139]
[1731976703051,0.03155221,3174.0,3173.6,3.15099]
[1731976703214,0.03155221,3174.0,3173.7,0.06300598]
[1731976703548,0.03155221,3174.0,3173.6,3.15095]
[1731976703702,0.03155221,3174.0,3173.7,0.3213946]
[1731976704112,0.03155221,3174.0,3173.5,0.06299597]
[1731976704353,0.03155221,3174.0,3173.6,3.15095]
[1731976704564,2.86689221,3174.4,3173.7,0.3152]
[1731976705020,3.14987,3174.8,3173.9,3.46589]
[1731976705222,3.15001,3174.6,3174.1,0.3152]
[1731976705554,3.15,3174.6,3174.1,1.2276]
[1731976705912,3.15,3174.6,3174.3,0.3152]
[1731976706154,4.01502,3174.9,3174.3,0.3152]
[1731976706455,0.6257245,3175.2,3174.7,0.3152]
[1731976706662,3.14921,3175.4,3174.9,0.3152]
[1731976706948,3.14903,3175.6,3174.9,0.3152]
[1731976707161,3.14903,3175.6,3174.9,0.37818155]
[1731976707323,3.14911,3175.5,3174.9,0.3152]
[1731976707554,1.00807693,3175.8,3174.9,0.3152]
[1731976707727,3.14903,3175.6,3174.9,0.3152]
[1731976707923,3.14903,3175.6,3174.9,0.75556304]
[1731976708370,4.09394,3175.8,3174.9,0.75556304]
[1731976708529,4.09394,3175.8,3175.1,0.3152]
[1731976708729,0.9451,3175.8,3175.1,0.3152]
[1731976708945,3.14912,3175.5,3175.1,0.3152]
[1731976709145,0.97665221,3175.8,3175.1,0.3152]
[1731976709471,0.03155221,3175.5,3175.4,0.3152]
[1731976709653,0.03155221,3175.5,3175.4,4.3843]
[1731976709971,0.8697,3176.6,3175.4,4.3843]
[1731976709972,0.03155221,3175.8,3175.7,3.46411]
[1731976710170,3.14823,3176.4,3175.7,3.46411]
[1731976710325,4.01772,3176.6,3175.9,0.3152]
[1731976710676,0.06297693,3176.5,3175.9,0.3152]
[1731976711174,3.14821,3176.4,3175.9,0.3152]
[1731976711369,3.1484,3176.3,3175.6,0.3152]
[1731976711569,0.8697,3176.6,3175.6,0.3152]
[1731976711731,3.14881,3175.8,3175.6,0.3152]
[1731976712076,3.18036221,3175.8,3175.6,0.3152]
[1731976712379,3.18036221,3175.8,3175.2,0.3152]
[1731976712528,3.18036221,3175.8,3175.2,0.75705064]
[1731976712728,3.14918,3175.5,3175.2,0.3152]
[1731976713170,0.03155221,3175.5,3175.2,0.3152]
[1731976714081,3.18068221,3175.5,3175.2,0.3152]
[1731976714287,3.96157693,3175.4,3174.5,0.3152]
[1731976714577,6.14964,3175.0,3174.5,0.3152]
[1731976714732,3.14989,3174.8,3174.5,0.661747]
[1731976714934,3.15,3174.6,3174.5,0.3152]
[1731976715151,3.15013,3174.5,3174.2,0.3152]
[1731976715858,3.1503,3174.3,3174.2,0.3152]
[1731976716448,3.18185221,3174.3,3174.2,0.3152]
[1731976716961,11.35701405,3174.3,3174.2,0.3152]
[1731976717175,3.55,3174.2,3173.1,0.3152]
[1731976717358,6.65888491,3173.9,3173.1,0.3152]
[1731976717544,3.1512,3173.4,3173.1,0.3152]
[1731976717741,3.15101,3173.6,3173.1,0.3152]
[1731976717939,0.03155221,3173.4,3173.1,0.3152]
[1731976718145,3.18275221,3173.4,3173.1,0.3152]
[1731976718647,0.03155221,3173.4,3173.1,0.3152]
[1731976719054,3.15138,3173.3,3173.2,0.3152]
[1731976719456,3.15138,3173.3,3172.7,0.3152]
[1731976719662,3.15138,3173.3,3172.7,0.72545822]
[1731976720169,3.15138,3173.3,3172.7,0.3152]
[1731976720396,3.15149,3173.1,3172.7,0.3152]
[1731976720546,3.15149,3173.1,3172.6,0.8875]
[1731976720857,3.18304221,3173.1,3172.6,0.8875]
[1731976721186,3.15189,3172.7,3172.2,0.3152]
[1731976721389,3.18344221,3172.7,3172.2,0.3152]
[1731976721718,0.01,3174.4,3172.7,0.9063]
[1731976721849,4.03667,3174.0,3173.2,3.15136]
[1731976722045,3.15058,3174.1,3173.4,0.9063]
[1731976722288,3.15079,3173.8,3173.4,0.9063]
[1731976722490,3.15079,3173.8,3173.0,3.46674]
[1731976722491,3.15105,3173.6,3173.0,0.3152]
[1731976722793,0.06297693,3173.5,3173.0,0.3152]
[1731976722992,3.15106,3173.6,3173.0,0.3152]
[1731976722993,4.04906,3173.6,3173.0,0.3152]
[1731976723173,0.898,3173.6,3173.0,0.3152]
[1731976723376,3.15116,3173.5,3173.0,0.3152]
[1731976723751,0.03155221,3173.5,3173.0,0.3152]
[1731976723954,0.03155221,3173.5,3173.0,3.904077]
[1731976724179,0.03155221,3173.5,3173.4,3.15119]
[1731976724355,0.03155221,3173.5,3173.4,4.08599641]
[1731976725282,0.03155221,3173.5,3173.4,4.40119641]
[1731976725451,0.03155221,3173.5,3173.4,4.08599641]
[1731976725772,0.03155221,3173.5,3173.4,3.87592864]
[1731976726459,0.03155221,3173.5,3173.4,0.72473864]